[Event "*** SCC Grand Prix: Titled Tuesday Blitz"]
[Site "Chess.com"]
[Date "2020.09.08"]
[Round "10"]
[White "Zarinur"]
[Black "MarceloPlaya"]
[Result "0-1"]
[WhiteElo "2142"]
[BlackElo "2363"]
[TimeControl "180+1"]
[EndTime "11:57:12 PDT"]
[Termination "MarceloPlaya won by checkmate"]

1. e4 {[%clk 0:03:00.9]} 1... e6 {[%clk 0:02:59.8]} 2. d4 {[%clk 0:02:57.9]}
2... d5 {[%clk 0:02:57.8]} 3. Bd3 {[%clk 0:02:57.9]} 3... Nc6 {[%clk 0:02:54.2]}
4. Nf3 {[%clk 0:02:55.2]} 4... Nf6 {[%clk 0:02:48.8]} 5. e5 {[%clk 0:02:53.8]}
5... Nd7 {[%clk 0:02:48.1]} 6. c3 {[%clk 0:02:53.4]} 6... f5 {[%clk 0:02:47.7]}
7. exf6 {[%clk 0:02:48.3]} 7... Nxf6 {[%clk 0:02:47.6]} 8. O-O {[%clk
0:02:46.9]} 8... Bd6 {[%clk 0:02:47.2]} 9. Re1 {[%clk 0:02:44.6]} 9... O-O
{[%clk 0:02:46.9]} 10. Bg5 {[%clk 0:02:43.1]} 10... Qe8 {[%clk 0:02:33.6]} 11.
Ne5 {[%clk 0:02:38.8]} 11... Nd7 {[%clk 0:02:12.4]} 12. Nxc6 {[%clk 0:02:21.8]}
12... bxc6 {[%clk 0:02:10.5]} 13. Qc2 {[%clk 0:02:18.7]} 13... Qh5 {[%clk
0:02:06]} 14. f4 {[%clk 0:02:07.4]} 14... Bxf4 {[%clk 0:01:55.8]} 15. Bxf4
{[%clk 0:02:03.5]} 15... Rxf4 {[%clk 0:01:55.7]} 16. Rxe6 {[%clk 0:01:52.5]}
16... Nf6 {[%clk 0:01:54.9]} 17. Re1 {[%clk 0:01:49.1]} 17... Ng4 {[%clk
0:01:48.2]} 18. h3 {[%clk 0:01:44.9]} 18... Nf6 {[%clk 0:01:28.5]} 19. Nd2
{[%clk 0:01:33.7]} 19... Bxh3 {[%clk 0:01:22.9]} 20. Re3 {[%clk 0:01:03.3]}
20... Bd7 {[%clk 0:01:12.6]} 21. Nf3 {[%clk 0:00:56.3]} 21... Ng4 {[%clk
0:01:10]} 22. Re7 {[%clk 0:00:48.9]} 22... Rd8 {[%clk 0:00:50.9]} 23. Rae1
{[%clk 0:00:42.9]} 23... Nf6 {[%clk 0:00:48.8]} 24. Qd2 {[%clk 0:00:41.1]} 24...
Qg4 {[%clk 0:00:38.9]} 25. Ne5 {[%clk 0:00:37.1]} 25... Qg3 {[%clk 0:00:34.9]}
26. Nxd7 {[%clk 0:00:27.9]} 26... Nxd7 {[%clk 0:00:32.8]} 27. Qe2 {[%clk
0:00:20.4]} 27... Rff8 {[%clk 0:00:30]} 28. Bf5 {[%clk 0:00:17.7]} 28... Nf6
{[%clk 0:00:28.9]} 29. Be6+ {[%clk 0:00:16.5]} 29... Kh8 {[%clk 0:00:28.1]} 30.
Rxc7 {[%clk 0:00:15.8]} 30... Ne4 {[%clk 0:00:26.7]} 31. Qe3 {[%clk 0:00:08.2]}
31... Qg6 {[%clk 0:00:21.1]} 32. Re7 {[%clk 0:00:06.4]} 32... Rf2 {[%clk
0:00:18.5]} 33. Bh3 {[%clk 0:00:04.6]} 33... Rff8 {[%clk 0:00:17.1]} 34. Re6
{[%clk 0:00:04.5]} 34... Qf7 {[%clk 0:00:16.5]} 35. Rxc6 {[%clk 0:00:04.2]}
35... h6 {[%clk 0:00:15.4]} 36. Ra6 {[%clk 0:00:04.2]} 36... Ng5 {[%clk
0:00:14.1]} 37. Ra5 {[%clk 0:00:04.3]} 37... Rde8 {[%clk 0:00:13.7]} 38. Qd2
{[%clk 0:00:03.3]} 38... Nxh3+ {[%clk 0:00:12.3]} 39. gxh3 {[%clk 0:00:03.2]}
39... Re4 {[%clk 0:00:11]} 40. Rxe4 {[%clk 0:00:02.4]} 40... dxe4 {[%clk
0:00:11]} 41. Re5 {[%clk 0:00:02.9]} 41... Qf3 {[%clk 0:00:10.4]} 42. Qe1 {[%clk
0:00:01.6]} 42... Rf4 {[%clk 0:00:07.9]} 43. Rxe4 {[%clk 0:00:02]} 43... Rxe4
{[%clk 0:00:07.7]} 44. Qd2 {[%clk 0:00:02]} 44... Re2 {[%clk 0:00:07]} 45. Qd1
{[%clk 0:00:02]} 45... Qg2# {[%clk 0:00:06.9]} 0-1

[Event "*** SCC Grand Prix: Titled Tuesday Blitz"]
[Site "Chess.com"]
[Date "2020.09.08"]
[Round "10"]
[White "BogdanDeac"]
[Black "iLuusions"]
[Result "1-0"]
[WhiteElo "2899"]
[BlackElo "2567"]
[TimeControl "180+1"]
[EndTime "11:57:17 PDT"]
[Termination "BogdanDeac won by resignation"]

1. e4 {[%clk 0:03:00.9]} 1... c5 {[%clk 0:02:59.6]} 2. Nf3 {[%clk 0:03:00.4]}
2... d6 {[%clk 0:03:00.2]} 3. d4 {[%clk 0:03:00.4]} 3... cxd4 {[%clk 0:03:01.1]}
4. Nxd4 {[%clk 0:03:01]} 4... Nf6 {[%clk 0:03:01.6]} 5. Nc3 {[%clk 0:03:01.6]}
5... a6 {[%clk 0:03:02.1]} 6. h4 {[%clk 0:03:01.8]} 6... b5 {[%clk 0:02:57.4]}
7. a4 {[%clk 0:03:00.9]} 7... b4 {[%clk 0:02:56.3]} 8. Nd5 {[%clk 0:03:01]} 8...
Bb7 {[%clk 0:02:17.8]} 9. Nxf6+ {[%clk 0:02:36.6]} 9... gxf6 {[%clk 0:02:18.7]}
10. Bd3 {[%clk 0:02:28.9]} 10... d5 {[%clk 0:02:04.6]} 11. Qe2 {[%clk
0:02:23.2]} 11... dxe4 {[%clk 0:02:03.8]} 12. Bxe4 {[%clk 0:02:22.9]} 12... Ra7
{[%clk 0:02:01.4]} 13. Bxb7 {[%clk 0:01:57.7]} 13... Rxb7 {[%clk 0:02:02.3]} 14.
Be3 {[%clk 0:01:58]} 14... h5 {[%clk 0:01:53.7]} 15. O-O-O {[%clk 0:01:55.8]}
15... Rd7 {[%clk 0:01:52.6]} 16. Qc4 {[%clk 0:01:49.5]} 16... Qc7 {[%clk
0:01:45.7]} 17. Qb3 {[%clk 0:01:36.6]} 17... e6 {[%clk 0:01:39.8]} 18. Rd2
{[%clk 0:01:22.4]} 18... Be7 {[%clk 0:01:39.2]} 19. Rhd1 {[%clk 0:01:21.7]}
19... Rd5 {[%clk 0:01:27.4]} 20. Nxe6 {[%clk 0:01:08.3]} 20... fxe6 {[%clk
0:01:25.2]} 21. Rxd5 {[%clk 0:01:08.2]} 21... exd5 {[%clk 0:01:26.1]} 22. Qxd5
{[%clk 0:01:08.6]} 22... Nc6 {[%clk 0:01:22.9]} 23. Qe4 {[%clk 0:00:48.7]} 23...
Ne5 {[%clk 0:01:20.4]} 24. Qa8+ {[%clk 0:00:46.9]} 24... Bd8 {[%clk 0:01:20.6]}
25. Qxa6 {[%clk 0:00:42.3]} 25... Qc6 {[%clk 0:01:20.2]} 26. Qxc6+ {[%clk
0:00:20.1]} 26... Nxc6 {[%clk 0:01:21.1]} 27. Rd5 {[%clk 0:00:20.1]} 27... Rg8
{[%clk 0:01:14.5]} 28. g3 {[%clk 0:00:18.4]} 28... Ne5 {[%clk 0:01:13.8]} 29. a5
{[%clk 0:00:18]} 29... Be7 {[%clk 0:01:13.2]} 30. a6 {[%clk 0:00:15]} 30... Kf7
{[%clk 0:01:13]} 31. a7 {[%clk 0:00:15.2]} 31... Ng4 {[%clk 0:01:12.3]} 32. Rb5
{[%clk 0:00:10.6]} 32... Bd6 {[%clk 0:01:08.2]} 33. Bd4 {[%clk 0:00:10]} 33...
Ke6 {[%clk 0:01:04.6]} 34. Rxh5 {[%clk 0:00:09.4]} 34... Ne5 {[%clk 0:00:59.6]}
35. Rh7 {[%clk 0:00:09.5]} 35... Nc6 {[%clk 0:00:55.8]} 36. Be3 {[%clk
0:00:08.7]} 36... Ra8 {[%clk 0:00:55.6]} 37. Rb7 {[%clk 0:00:08.3]} 37... Na5
{[%clk 0:00:51]} 38. Rb6 {[%clk 0:00:05.6]} 38... Nc4 {[%clk 0:00:51.1]} 39. Ra6
{[%clk 0:00:03.5]} 39... Nxe3 {[%clk 0:00:51.2]} 40. fxe3 {[%clk 0:00:04.3]}
40... Ke5 {[%clk 0:00:47.7]} 41. g4 {[%clk 0:00:03.9]} 41... Bc5 {[%clk
0:00:45.8]} 42. Kd2 {[%clk 0:00:04.2]} 42... Ke4 {[%clk 0:00:33.1]} 43. Ke2
{[%clk 0:00:03.9]} 43... Rxa7 {[%clk 0:00:27.4]} 44. Rxf6 {[%clk 0:00:04]} 44...
Ra2 {[%clk 0:00:24.7]} 45. Rf4+ {[%clk 0:00:04.1]} 45... Ke5 {[%clk 0:00:23]}
46. Rc4 {[%clk 0:00:03.1]} 46... Kd5 {[%clk 0:00:21.4]} 47. b3 {[%clk
0:00:03.4]} 47... Bd6 {[%clk 0:00:16.7]} 48. g5 {[%clk 0:00:03.4]} 48... Ke6
{[%clk 0:00:15]} 49. h5 {[%clk 0:00:02.6]} 49... Ra5 {[%clk 0:00:14.8]} 50. Rg4
{[%clk 0:00:01.8]} 50... Be7 {[%clk 0:00:13.5]} 51. g6 {[%clk 0:00:02.1]} 51...
Kf6 {[%clk 0:00:13.3]} 52. g7 {[%clk 0:00:02.4]} 1-0

[Event "*** SCC Grand Prix: Titled Tuesday Blitz"]
[Site "Chess.com"]
[Date "2020.09.08"]
[Round "10"]
[White "Izoria123"]
[Black "Gabrielian_Artur"]
[Result "1-0"]
[WhiteElo "2883"]
[BlackElo "2721"]
[TimeControl "180+1"]
[EndTime "11:57:18 PDT"]
[Termination "Izoria123 won by resignation"]

1. Nf3 {[%clk 0:03:00.9]} 1... c5 {[%clk 0:02:58.5]} 2. c4 {[%clk 0:02:59.1]}
2... Nc6 {[%clk 0:02:57.6]} 3. Nc3 {[%clk 0:02:59.3]} 3... e5 {[%clk 0:02:55.7]}
4. d3 {[%clk 0:02:58.7]} 4... g6 {[%clk 0:02:55.2]} 5. a3 {[%clk 0:02:59]} 5...
Bg7 {[%clk 0:02:54.1]} 6. b4 {[%clk 0:02:58.6]} 6... e4 {[%clk 0:02:51.3]} 7.
Nxe4 {[%clk 0:02:58.4]} 7... Bxa1 {[%clk 0:01:56.2]} 8. Bg5 {[%clk 0:02:57.6]}
8... Bc3+ {[%clk 0:01:44.9]} 9. Nxc3 {[%clk 0:02:54.4]} 9... f6 {[%clk
0:01:45.4]} 10. Bd2 {[%clk 0:02:43.2]} 10... d6 {[%clk 0:01:44.4]} 11. g3 {[%clk
0:02:20.7]} 11... Be6 {[%clk 0:01:30.1]} 12. Bg2 {[%clk 0:02:15.6]} 12... Nge7
{[%clk 0:01:29.8]} 13. bxc5 {[%clk 0:02:14.8]} 13... dxc5 {[%clk 0:01:29.6]} 14.
Ne4 {[%clk 0:02:14.9]} 14... O-O {[%clk 0:01:12.4]} 15. Nxc5 {[%clk 0:02:11.7]}
15... Qc8 {[%clk 0:01:12.6]} 16. O-O {[%clk 0:02:04.8]} 16... Bh3 {[%clk
0:01:09.8]} 17. Bxh3 {[%clk 0:02:03.8]} 17... Qxh3 {[%clk 0:01:09.4]} 18. Nxb7
{[%clk 0:02:04.7]} 18... Rab8 {[%clk 0:01:09]} 19. Nd6 {[%clk 0:02:04.1]} 19...
Nf5 {[%clk 0:01:02.2]} 20. Nxf5 {[%clk 0:02:00]} 20... Qxf5 {[%clk 0:01:01.5]}
21. Bc3 {[%clk 0:01:52]} 21... Rfe8 {[%clk 0:01:00.3]} 22. Nd2 {[%clk
0:01:50.9]} 22... Ne5 {[%clk 0:00:56.9]} 23. Ne4 {[%clk 0:01:50.5]} 23... Rbd8
{[%clk 0:00:53.8]} 24. Qa4 {[%clk 0:01:40.8]} 24... Re7 {[%clk 0:00:48.3]} 25.
Rb1 {[%clk 0:01:38.1]} 25... Ng4 {[%clk 0:00:31]} 26. Rb5 {[%clk 0:01:29.5]}
26... Qd7 {[%clk 0:00:19]} 27. Qb3 {[%clk 0:00:47.5]} 27... f5 {[%clk
0:00:14.7]} 28. Rd5 {[%clk 0:00:40.7]} 28... Qe8 {[%clk 0:00:12.8]} 29. Rxd8
{[%clk 0:00:38.2]} 29... Qxd8 {[%clk 0:00:13.1]} 30. Nf6+ {[%clk 0:00:38.6]}
30... Kf7 {[%clk 0:00:10.1]} 31. c5+ {[%clk 0:00:35.1]} 31... Re6 {[%clk
0:00:09.5]} 32. Nd5 {[%clk 0:00:30.2]} 32... Kf8 {[%clk 0:00:05.4]} 33. Nf4
{[%clk 0:00:28.4]} 33... Re7 {[%clk 0:00:04.7]} 34. Ne6+ {[%clk 0:00:28.1]}
34... Rxe6 {[%clk 0:00:04.9]} 35. Qxe6 {[%clk 0:00:29]} 35... Qb8 {[%clk
0:00:03.8]} 36. Qd6+ {[%clk 0:00:24.5]} 36... Qxd6 {[%clk 0:00:03.8]} 37. cxd6
{[%clk 0:00:25.4]} 37... Kf7 {[%clk 0:00:04.6]} 38. h3 {[%clk 0:00:24.8]} 38...
Nh6 {[%clk 0:00:04.4]} 39. e4 {[%clk 0:00:19.3]} 39... Ke6 {[%clk 0:00:04.6]}
40. e5 {[%clk 0:00:18.7]} 40... Nf7 {[%clk 0:00:04.7]} 41. f4 {[%clk 0:00:18.1]}
41... Nd8 {[%clk 0:00:04]} 42. Kf2 {[%clk 0:00:18.1]} 42... Nc6 {[%clk
0:00:03.6]} 43. Ke3 {[%clk 0:00:18.3]} 43... Kd5 {[%clk 0:00:03.2]} 44. d7
{[%clk 0:00:16.7]} 44... Ke6 {[%clk 0:00:03]} 45. d4 {[%clk 0:00:15.4]} 45...
Kxd7 {[%clk 0:00:02.2]} 46. d5 {[%clk 0:00:15.6]} 46... Ne7 {[%clk 0:00:02.9]}
47. Kd4 {[%clk 0:00:15.7]} 47... Nc8 {[%clk 0:00:03.6]} 48. e6+ {[%clk
0:00:15.6]} 48... Ke7 {[%clk 0:00:04.1]} 49. Ke5 {[%clk 0:00:15.1]} 49... Nb6
{[%clk 0:00:04.7]} 50. Bb4+ {[%clk 0:00:15.6]} 50... Ke8 {[%clk 0:00:05.6]} 51.
d6 {[%clk 0:00:15.2]} 51... a5 {[%clk 0:00:03.7]} 52. d7+ {[%clk 0:00:14.6]} 1-0

[Event "*** SCC Grand Prix: Titled Tuesday Blitz"]
[Site "Chess.com"]
[Date "2020.09.08"]
[Round "10"]
[White "pitterson"]
[Black "WiktoriaPOL"]
[Result "1-0"]
[WhiteElo "2214"]
[BlackElo "1967"]
[TimeControl "180+1"]
[EndTime "11:57:23 PDT"]
[Termination "pitterson won on time"]

1. d4 {[%clk 0:03:00.9]} 1... Nf6 {[%clk 0:02:59.3]} 2. c4 {[%clk 0:02:59.8]}
2... g6 {[%clk 0:02:59.2]} 3. Nc3 {[%clk 0:02:58.5]} 3... Bg7 {[%clk 0:02:59.2]}
4. e4 {[%clk 0:02:57.3]} 4... d6 {[%clk 0:02:59.3]} 5. Nf3 {[%clk 0:02:56.5]}
5... O-O {[%clk 0:02:58.3]} 6. Be2 {[%clk 0:02:55.7]} 6... e5 {[%clk 0:02:58.5]}
7. O-O {[%clk 0:02:54.7]} 7... Nc6 {[%clk 0:02:58.4]} 8. d5 {[%clk 0:02:53.7]}
8... Ne7 {[%clk 0:02:58.5]} 9. Ne1 {[%clk 0:02:53.2]} 9... Nd7 {[%clk
0:02:55.4]} 10. f3 {[%clk 0:02:52.5]} 10... f5 {[%clk 0:02:55.1]} 11. g4 {[%clk
0:02:52.2]} 11... f4 {[%clk 0:02:53.9]} 12. h4 {[%clk 0:02:51.5]} 12... Kh8
{[%clk 0:02:35.1]} 13. Nd3 {[%clk 0:02:38.9]} 13... Ng8 {[%clk 0:02:31.8]} 14.
Qe1 {[%clk 0:02:37]} 14... h6 {[%clk 0:02:26]} 15. Kg2 {[%clk 0:02:23.8]} 15...
Nc5 {[%clk 0:01:56.4]} 16. Nxc5 {[%clk 0:02:07.8]} 16... dxc5 {[%clk 0:01:57.3]}
17. Qf2 {[%clk 0:02:07.6]} 17... b6 {[%clk 0:01:53.1]} 18. Bd2 {[%clk 0:02:06]}
18... Bb7 {[%clk 0:01:43.8]} 19. Rh1 {[%clk 0:02:00.3]} 19... Ne7 {[%clk
0:01:34.8]} 20. a3 {[%clk 0:01:42]} 20... a5 {[%clk 0:01:32.3]} 21. b3 {[%clk
0:01:39.2]} 21... Nc8 {[%clk 0:01:29.9]} 22. Rag1 {[%clk 0:01:25.6]} 22... Nd6
{[%clk 0:01:24.3]} 23. Kh2 {[%clk 0:01:23.3]} 23... Bc8 {[%clk 0:01:20.7]} 24.
Bf1 {[%clk 0:01:21.4]} 24... Bd7 {[%clk 0:01:18]} 25. Bh3 {[%clk 0:01:20.7]}
25... a4 {[%clk 0:01:14.8]} 26. bxa4 {[%clk 0:01:14.9]} 26... Bxa4 {[%clk
0:01:14.2]} 27. g5 {[%clk 0:01:11.4]} 27... h5 {[%clk 0:01:13.3]} 28. Ra1 {[%clk
0:01:01.5]} 28... Nxc4 {[%clk 0:01:10.8]} 29. Bc1 {[%clk 0:00:43.1]} 29... Bd7
{[%clk 0:01:07.4]} 30. Bf1 {[%clk 0:00:35.8]} 30... Na5 {[%clk 0:00:54.2]} 31.
Nb5 {[%clk 0:00:32.9]} 31... Bxb5 {[%clk 0:00:47.8]} 32. Bxb5 {[%clk 0:00:31.4]}
32... Nb3 {[%clk 0:00:46.7]} 33. Ra2 {[%clk 0:00:28.3]} 33... Nd4 {[%clk
0:00:44.4]} 34. Bd3 {[%clk 0:00:23.4]} 34... Ra5 {[%clk 0:00:42.6]} 35. Bd2
{[%clk 0:00:21.8]} 35... Ra7 {[%clk 0:00:40]} 36. Bc3 {[%clk 0:00:20.5]} 36...
Qa8 {[%clk 0:00:36.8]} 37. Rha1 {[%clk 0:00:18.1]} 37... Ra4 {[%clk 0:00:27.8]}
38. Bxd4 {[%clk 0:00:17.6]} 38... Rxd4 {[%clk 0:00:27]} 39. Bb5 {[%clk
0:00:16.1]} 39... Qa5 {[%clk 0:00:24.8]} 40. a4 {[%clk 0:00:14.3]} 40... Rb4
{[%clk 0:00:18.8]} 41. Qg2 {[%clk 0:00:13.1]} 41... Ra8 {[%clk 0:00:16.3]} 42.
Qh3 {[%clk 0:00:10.4]} 42... Qa7 {[%clk 0:00:05.5]} 43. Qe6 {[%clk 0:00:10.1]}
43... Kh7 {[%clk 0:00:05.4]} 44. Qf7 {[%clk 0:00:07.8]} 44... Rf8 {[%clk
0:00:04.3]} 45. Qe6 {[%clk 0:00:05.5]} 45... Qb8 {[%clk 0:00:04]} 46. Bd7 {[%clk
0:00:04.3]} 46... Qd8 {[%clk 0:00:03.5]} 47. a5 {[%clk 0:00:03.3]} 47... b5
{[%clk 0:00:02.7]} 48. a6 {[%clk 0:00:02.2]} 48... Qa8 {[%clk 0:00:02.3]} 49. a7
{[%clk 0:00:02]} 49... Rg8 {[%clk 0:00:01.4]} 50. Bc6 {[%clk 0:00:02]} 1-0

[Event "*** SCC Grand Prix: Titled Tuesday Blitz"]
[Site "Chess.com"]
[Date "2020.09.08"]
[Round "10"]
[White "NotFischer"]
[Black "Zhani-Z"]
[Result "0-1"]
[WhiteElo "2264"]
[BlackElo "2514"]
[TimeControl "180+1"]
[EndTime "11:57:25 PDT"]
[Termination "Zhani-Z won by checkmate"]

1. e4 {[%clk 0:03:00.8]} 1... c5 {[%clk 0:02:35]} 2. Nf3 {[%clk 0:03:00.4]} 2...
Nf6 {[%clk 0:02:35.2]} 3. Nc3 {[%clk 0:02:59.9]} 3... d5 {[%clk 0:02:34.4]} 4.
exd5 {[%clk 0:02:57.1]} 4... Nxd5 {[%clk 0:02:35.3]} 5. Bb5+ {[%clk 0:02:41]}
5... Bd7 {[%clk 0:02:33.2]} 6. a4 {[%clk 0:02:35.5]} 6... Nf6 {[%clk 0:02:14.7]}
7. O-O {[%clk 0:02:33.3]} 7... Nc6 {[%clk 0:02:09.6]} 8. Re1 {[%clk 0:02:30.6]}
8... e6 {[%clk 0:02:09.2]} 9. d4 {[%clk 0:02:24.7]} 9... cxd4 {[%clk 0:02:07.1]}
10. Nxd4 {[%clk 0:02:25.6]} 10... Be7 {[%clk 0:02:01.4]} 11. Be3 {[%clk
0:02:06.7]} 11... O-O {[%clk 0:01:56.4]} 12. Nxc6 {[%clk 0:01:57.7]} 12... bxc6
{[%clk 0:01:56]} 13. Bd3 {[%clk 0:01:56.5]} 13... Nd5 {[%clk 0:01:54.7]} 14. Bd4
{[%clk 0:01:48.7]} 14... Rb8 {[%clk 0:01:46.3]} 15. Qh5 {[%clk 0:01:37.3]} 15...
g6 {[%clk 0:01:41.1]} 16. Qh6 {[%clk 0:01:30.2]} 16... Bf6 {[%clk 0:01:37.3]}
17. Bc5 {[%clk 0:01:16.9]} 17... Bg7 {[%clk 0:01:25.5]} 18. Qd2 {[%clk
0:01:04.8]} 18... Re8 {[%clk 0:01:15.4]} 19. Nxd5 {[%clk 0:00:56.2]} 19... cxd5
{[%clk 0:01:06.6]} 20. c3 {[%clk 0:00:56.2]} 20... Qc7 {[%clk 0:01:02.4]} 21. b4
{[%clk 0:00:51.4]} 21... Rec8 {[%clk 0:01:00.9]} 22. Ba6 {[%clk 0:00:48.2]}
22... Re8 {[%clk 0:00:56.8]} 23. Qe3 {[%clk 0:00:44.9]} 23... Ra8 {[%clk
0:00:50.8]} 24. h4 {[%clk 0:00:44.2]} 24... h5 {[%clk 0:00:45.9]} 25. a5 {[%clk
0:00:43.8]} 25... e5 {[%clk 0:00:32]} 26. Rad1 {[%clk 0:00:40.5]} 26... Bc6
{[%clk 0:00:21.3]} 27. Qg3 {[%clk 0:00:32]} 27... Re6 {[%clk 0:00:17.5]} 28. Bd3
{[%clk 0:00:26]} 28... Qb7 {[%clk 0:00:15.7]} 29. c4 {[%clk 0:00:23.6]} 29... d4
{[%clk 0:00:15.2]} 30. f3 {[%clk 0:00:13.9]} 30... f5 {[%clk 0:00:14.5]} 31.
Bxf5 {[%clk 0:00:05.4]} 31... gxf5 {[%clk 0:00:13.9]} 32. Qg5 {[%clk 0:00:05.1]}
32... Qf7 {[%clk 0:00:11]} 33. Re2 {[%clk 0:00:03.5]} 33... Bxf3 {[%clk
0:00:10.5]} 34. gxf3 {[%clk 0:00:03.1]} 34... Rg6 {[%clk 0:00:10.5]} 35. Rde1
{[%clk 0:00:03.5]} 35... Rxg5+ {[%clk 0:00:10.6]} 36. hxg5 {[%clk 0:00:04.4]}
36... Qg6 {[%clk 0:00:10.9]} 37. f4 {[%clk 0:00:03.7]} 37... e4 {[%clk
0:00:10.8]} 38. Kh2 {[%clk 0:00:02.5]} 38... d3 {[%clk 0:00:11.1]} 39. Rd2
{[%clk 0:00:02.8]} 39... Rc8 {[%clk 0:00:10.8]} 40. Red1 {[%clk 0:00:03.7]}
40... Rxc5 {[%clk 0:00:10.6]} 41. bxc5 {[%clk 0:00:04.6]} 41... Qc6 {[%clk
0:00:11]} 42. Rxd3 {[%clk 0:00:04.2]} 42... exd3 {[%clk 0:00:10.7]} 43. Rxd3
{[%clk 0:00:05.1]} 43... Qxc5 {[%clk 0:00:11.1]} 44. Rd8+ {[%clk 0:00:05.6]}
44... Kh7 {[%clk 0:00:10.1]} 45. g6+ {[%clk 0:00:06.2]} 45... Kxg6 {[%clk
0:00:10]} 46. Rd7 {[%clk 0:00:07.1]} 46... Qf2+ {[%clk 0:00:09.4]} 47. Kh3
{[%clk 0:00:07.2]} 47... Qf3+ {[%clk 0:00:10.3]} 48. Kh2 {[%clk 0:00:07.3]}
48... Qxf4+ {[%clk 0:00:11.1]} 49. Kh1 {[%clk 0:00:08]} 49... Qxc4 {[%clk
0:00:11.5]} 50. Rd6+ {[%clk 0:00:08]} 50... Kg5 {[%clk 0:00:11.3]} 51. Rd7
{[%clk 0:00:08.3]} 51... Qf1+ {[%clk 0:00:10.8]} 52. Kh2 {[%clk 0:00:08.6]}
52... Be5# {[%clk 0:00:11.7]} 0-1

[Event "*** SCC Grand Prix: Titled Tuesday Blitz"]
[Site "Chess.com"]
[Date "2020.09.08"]
[Round "10"]
[White "GMaka"]
[Black "GelmanAlexander"]
[Result "1-0"]
[WhiteElo "2394"]
[BlackElo "2497"]
[TimeControl "180+1"]
[EndTime "11:57:28 PDT"]
[Termination "GMaka won by resignation"]

1. Nf3 {[%clk 0:03:00.9]} 1... c5 {[%clk 0:02:58.7]} 2. b3 {[%clk 0:02:57.5]}
2... Nf6 {[%clk 0:02:53]} 3. Bb2 {[%clk 0:02:57.4]} 3... e6 {[%clk 0:02:52.7]}
4. e3 {[%clk 0:02:55.1]} 4... b6 {[%clk 0:02:52.2]} 5. g3 {[%clk 0:02:50.5]}
5... Bb7 {[%clk 0:02:51.9]} 6. Bg2 {[%clk 0:02:51.4]} 6... d6 {[%clk 0:02:44.3]}
7. O-O {[%clk 0:02:50.2]} 7... Nbd7 {[%clk 0:02:44.5]} 8. d4 {[%clk 0:02:50.2]}
8... Be7 {[%clk 0:02:39]} 9. c4 {[%clk 0:02:49.8]} 9... a6 {[%clk 0:02:28.9]}
10. d5 {[%clk 0:02:49.6]} 10... exd5 {[%clk 0:02:07.8]} 11. Nh4 {[%clk
0:02:47.3]} 11... g6 {[%clk 0:02:05.5]} 12. Nc3 {[%clk 0:02:41.5]} 12... O-O
{[%clk 0:02:05.7]} 13. Nxd5 {[%clk 0:02:41.5]} 13... Nxd5 {[%clk 0:02:02.3]} 14.
Bxd5 {[%clk 0:02:42.3]} 14... Bxd5 {[%clk 0:01:59.3]} 15. Qxd5 {[%clk
0:02:43.2]} 15... Bf6 {[%clk 0:01:54.8]} 16. Bxf6 {[%clk 0:02:37]} 16... Nxf6
{[%clk 0:01:54.2]} 17. Qg5 {[%clk 0:02:32.7]} 17... Ne4 {[%clk 0:01:38.4]} 18.
Qxd8 {[%clk 0:02:28.9]} 18... Rfxd8 {[%clk 0:01:35.8]} 19. Rfd1 {[%clk
0:02:29.6]} 19... b5 {[%clk 0:01:32.3]} 20. f4 {[%clk 0:02:15.3]} 20... Rab8
{[%clk 0:01:07.8]} 21. Rac1 {[%clk 0:02:00.6]} 21... f5 {[%clk 0:01:04.5]} 22.
Nf3 {[%clk 0:01:59.3]} 22... b4 {[%clk 0:00:57.1]} 23. Rd3 {[%clk 0:01:38.2]}
23... a5 {[%clk 0:00:47.3]} 24. Rcd1 {[%clk 0:01:24.3]} 24... a4 {[%clk
0:00:43.1]} 25. Ng5 {[%clk 0:01:24.2]} 25... Nc3 {[%clk 0:00:35.1]} 26. R1d2
{[%clk 0:01:19.3]} 26... a3 {[%clk 0:00:33]} 27. Ne6 {[%clk 0:01:10.8]} 27...
Re8 {[%clk 0:00:23.2]} 28. Nc7 {[%clk 0:01:02.9]} 28... Re7 {[%clk 0:00:20.2]}
29. Nd5 {[%clk 0:01:00.1]} 29... Nxd5 {[%clk 0:00:20.6]} 30. Rxd5 {[%clk
0:01:01]} 30... Rxe3 {[%clk 0:00:21.2]} 31. Rxd6 {[%clk 0:01:01.3]} 31... Rbe8
{[%clk 0:00:20.7]} 32. Kf2 {[%clk 0:00:58.1]} 32... Re1 {[%clk 0:00:18.7]} 33.
R6d5 {[%clk 0:00:49.3]} 33... Rh1 {[%clk 0:00:16.7]} 34. Kg2 {[%clk 0:00:48.9]}
34... Rb1 {[%clk 0:00:15.2]} 35. Rxc5 {[%clk 0:00:19.7]} 35... Rb2 {[%clk
0:00:15.5]} 36. Rd5 {[%clk 0:00:19.7]} 36... Re2+ {[%clk 0:00:14.7]} 37. Rxe2
{[%clk 0:00:20.3]} 37... Rxe2+ {[%clk 0:00:15.5]} 38. Kf3 {[%clk 0:00:21.1]}
38... Rxa2 {[%clk 0:00:16.4]} 39. Rb5 {[%clk 0:00:21.3]} 39... Rxh2 {[%clk
0:00:14.5]} 40. Rxb4 {[%clk 0:00:21.2]} 40... a2 {[%clk 0:00:15.1]} 41. Ra4
{[%clk 0:00:21.7]} 41... Rb2 {[%clk 0:00:15.1]} 42. b4 {[%clk 0:00:22]} 42...
a1=Q {[%clk 0:00:14.5]} 43. Rxa1 {[%clk 0:00:21.7]} 43... Rxb4 {[%clk
0:00:15.1]} 44. Rc1 {[%clk 0:00:21.5]} 44... Kf7 {[%clk 0:00:14.7]} 45. c5
{[%clk 0:00:21.6]} 45... Rb7 {[%clk 0:00:14.7]} 46. Ke3 {[%clk 0:00:19.5]} 46...
Ke6 {[%clk 0:00:15]} 47. c6 {[%clk 0:00:18.3]} 47... Rc7 {[%clk 0:00:15.3]} 48.
Kd4 {[%clk 0:00:17.4]} 48... Kd6 {[%clk 0:00:15.8]} 49. Rc5 {[%clk 0:00:13.6]}
49... Rxc6 {[%clk 0:00:14.5]} 50. Rxc6+ {[%clk 0:00:07.2]} 50... Kxc6 {[%clk
0:00:15.4]} 51. Ke5 {[%clk 0:00:08.1]} 51... Kc5 {[%clk 0:00:14.4]} 52. Kf6
{[%clk 0:00:07.9]} 52... Kd4 {[%clk 0:00:14.9]} 53. Kg7 {[%clk 0:00:08.5]} 53...
Ke4 {[%clk 0:00:14.4]} 54. Kxh7 {[%clk 0:00:08.6]} 54... Kf3 {[%clk 0:00:11.2]}
55. Kxg6 {[%clk 0:00:08.6]} 55... Kxg3 {[%clk 0:00:11.3]} 56. Kxf5 {[%clk
0:00:08.8]} 1-0